bitfinex-derivatives/quotes_BTCF0:USTF0_20250915
["timestamp","ask_amount","ask_price","bid_price","bid_amount"]
[1757959431207,1.69547135,115170.0,115160.0,0.3879]
[1757959431412,0.90063135,115170.0,115160.0,0.3879]
[1757959431613,1.69547135,115170.0,115160.0,0.3879]
[1757959432206,1.76335754,115170.0,115160.0,0.3879]
[1757959432508,0.92378666,115170.0,115160.0,0.3879]
[1757959432812,1.76335754,115170.0,115160.0,0.3879]
[1757959433811,1.76339754,115170.0,115160.0,0.3879]
[1757959434013,0.96851754,115170.0,115160.0,0.3879]
[1757959434214,1.76339754,115170.0,115160.0,0.3879]
[1757959435013,1.77339754,115170.0,115160.0,0.3879]
[1757959435703,0.5587321,115170.0,115160.0,0.3879]
[1757959435907,0.10803666,115170.0,115160.0,1.06894544]
[1757959436104,0.81907666,115170.0,115160.0,1.06894544]
[1757959436512,1.2388621,115170.0,115160.0,1.06894544]
[1757959436712,1.2755021,115170.0,115160.0,0.6379]
[1757959436902,1.2755021,115170.0,115160.0,1.05768544]
[1757959439815,1.27549613,115170.0,115160.0,1.05768544]
[1757959440610,0.85571069,115170.0,115160.0,1.05768544]
[1757959440816,1.27549613,115170.0,115160.0,1.05768544]
[1757959441019,0.90295069,115170.0,115160.0,1.06894544]
[1757959441210,1.35937613,115170.0,115160.0,0.6379]
[1757959441411,2.02916157,115170.0,115160.0,0.3658]
[1757959441719,2.68996157,115170.0,115160.0,0.005]
[1757959441916,2.38996157,115170.0,115160.0,0.005]
[1757959442716,1.55039069,115170.0,115160.0,0.003]
[1757959443015,2.39096157,115170.0,115160.0,0.003]
[1757959444017,2.39096157,115170.0,115150.0,1.3008]
[1757959444218,0.43348544,115160.0,115150.0,1.3008]
[1757959444509,0.45436546,115160.0,115150.0,1.3008]
[1757959445818,0.8980909,115160.0,115150.0,0.3608]
[1757959446015,1.1980909,115160.0,115150.0,0.3608]
[1757959446313,0.8980909,115160.0,115150.0,0.3608]
[1757959446517,0.03664,115150.0,115140.0,0.38287]
[1757959446711,1.6944109,115150.0,115140.0,0.38287]
[1757959447620,1.27462546,115150.0,115140.0,0.38287]
[1757959447824,1.27462546,115150.0,115140.0,0.38387]
[1757959448822,1.27462546,115150.0,115140.0,0.38487]
[1757959450118,1.27462546,115150.0,115140.0,0.38387]
[1757959450418,1.27562546,115150.0,115140.0,0.38287]
[1757959452915,0.47830546,115150.0,115140.0,0.38287]
[1757959453118,1.27538546,115150.0,115140.0,0.38287]
[1757959453318,1.27542546,115150.0,115140.0,0.38287]
[1757959453923,0.05852002,115150.0,115140.0,0.38287]
[1757959454122,0.81908002,115150.0,115140.0,1.05565544]
[1757959454323,1.23886546,115150.0,115140.0,1.05565544]
[1757959454527,1.23894546,115150.0,115140.0,1.05565544]
[1757959455527,1.27558546,115150.0,115140.0,0.63287]
[1757959455822,1.27558546,115150.0,115140.0,1.05265544]
[1757959456419,1.27558546,115150.0,115140.0,0.63287]
[1757959456815,1.27558546,115150.0,115140.0,1.05265544]
[1757959457021,1.27558546,115150.0,115140.0,0.63287]
[1757959461324,1.10580002,115150.0,115140.0,0.38287]
[1757959461627,1.9453709,115150.0,115140.0,0.38287]
[1757959461928,1.9453709,115150.0,115140.0,0.3608]
[1757959462126,0.03664,115130.0,115120.0,1.32287]
[1757959462328,1.30048457,115130.0,115120.0,0.38287]
[1757959462631,1.32136459,115130.0,115120.0,0.38287]
[1757959462928,1.32136459,115130.0,115120.0,1.32287]
[1757959463229,1.39164307,115130.0,115120.0,1.32287]
[1757959463420,1.39164307,115130.0,115120.0,1.32487]
[1757959463620,1.34482394,115130.0,115120.0,1.32487]
[1757959464123,1.34482394,115130.0,115120.0,1.32687]
[1757959464530,0.54758394,115130.0,115120.0,1.32687]
[1757959464729,1.34470394,115130.0,115120.0,1.32387]
[1757959464918,1.34470394,115130.0,115120.0,1.32487]
[1757959469339,1.34410394,115130.0,115120.0,1.32487]
[1757959470929,1.34410394,115130.0,115120.0,0.38487]
[1757959473336,1.34398394,115130.0,115120.0,0.38487]
[1757959475536,0.54758394,115130.0,115120.0,0.38487]
[1757959475734,1.34370394,115130.0,115120.0,0.38487]
[1757959477040,0.54758394,115130.0,115120.0,0.38487]
[1757959477241,1.34354394,115130.0,115120.0,0.38487]
[1757959478940,0.54758394,115130.0,115120.0,0.38487]
[1757959479442,1.34410394,115130.0,115120.0,0.38487]
[1757959479744,1.29794331,115130.0,115120.0,0.38487]
[1757959480131,0.50142331,115130.0,115120.0,0.38487]
[1757959480335,1.29782331,115130.0,115120.0,0.38487]
[1757959480935,0.50142331,115130.0,115120.0,0.38487]
[1757959481135,1.29782331,115130.0,115120.0,0.38487]
[1757959482843,0.1277985,115130.0,115120.0,0.38487]
[1757959483043,1.11466331,115130.0,115120.0,0.38487]
[1757959484338,0.50142331,115130.0,115120.0,0.38487]
[1757959484741,1.29750331,115130.0,115120.0,0.38487]
[1757959492147,0.9238785,115130.0,115120.0,0.38487]
[1757959492351,1.29750331,115130.0,115120.0,0.38487]
[1757959492545,0.9238785,115130.0,115120.0,0.38487]
[1757959492747,1.29750331,115130.0,115120.0,0.38487]
[1757959494441,0.9232785,115130.0,115120.0,0.38987]
[1757959498058,0.1140985,115130.0,115120.0,0.85034121]
[1757959498258,0.0911585,115130.0,115120.0,0.92034121]
[1757959498458,0.0911585,115130.0,115120.0,1.96582121]
[1757959501048,0.0911585,115130.0,115120.0,1.42034121]
[1757959501254,0.0911585,115130.0,115120.0,2.01578121]
[1757959501849,0.0911585,115130.0,115120.0,2.22578121]
[1757959502056,0.02088002,115130.0,115120.0,2.22578121]
[1757959502456,0.0001,115140.0,115120.0,2.22578121]
[1757959502655,0.0001,115140.0,115130.0,0.76727481]
[1757959502857,0.02088002,115140.0,115130.0,0.76727481]
[1757959503056,0.41212002,115150.0,115130.0,0.76727481]
[1757959503257,0.43469002,115150.0,115140.0,0.38239]
[1757959503559,0.43459002,115150.0,115140.0,0.38239]
[1757959504447,0.80821483,115150.0,115140.0,0.38239]
[1757959505359,0.85703396,115150.0,115140.0,0.38239]
[1757959505657,0.03595,115140.0,115130.0,0.38239]
[1757959505860,0.43045483,115140.0,115130.0,0.38239]
[1757959506759,0.72727396,115140.0,115130.0,0.3608]
[1757959507059,0.03595,115130.0,115120.0,0.40283254]
[1757959507256,1.25201396,115130.0,115120.0,0.40283254]
[1757959507463,1.27289398,115130.0,115120.0,0.40283254]
[1757959507761,1.22605483,115130.0,115120.0,0.40283254]
[1757959508256,1.27289398,115130.0,115120.0,0.40283254]
[1757959508466,1.22605483,115130.0,115120.0,0.40283254]
[1757959508659,1.22605483,115130.0,115120.0,0.40383254]
[1757959509760,1.29605547,115130.0,115120.0,0.40483254]
[1757959512467,1.59289462,115130.0,115120.0,0.40483254]
[1757959512665,1.59289462,115130.0,115120.0,0.38324254]
[1757959513368,1.59269462,115130.0,115120.0,0.38324254]
[1757959513568,0.79729462,115130.0,115120.0,0.38324254]
[1757959513868,1.59269462,115130.0,115120.0,0.38324254]
[1757959514364,1.98196012,115130.0,115120.0,0.002]
[1757959514668,2.35861859,115130.0,115120.0,0.002]
[1757959514860,2.42108811,115130.0,115120.0,0.002]
[1757959515061,1.5473498,115130.0,115120.0,0.002]
[1757959515266,2.32715953,115130.0,115120.0,0.002]
[1757959515567,1.53171953,115130.0,115120.0,0.002]
[1757959515769,2.32715953,115130.0,115120.0,0.002]
[1757959516466,2.49715953,115130.0,115120.0,0.002]
[1757959517064,1.53171953,115130.0,115120.0,0.002]
[1757959517363,1.95353472,115130.0,115120.0,0.002]
[1757959518666,1.15809472,115130.0,115120.0,0.002]
[1757959518871,1.95357472,115130.0,115120.0,0.002]
[1757959519665,1.15809472,115130.0,115120.0,0.002]
[1757959519870,1.95357472,115130.0,115120.0,0.002]
[1757959520072,1.15809472,115130.0,115120.0,0.002]
[1757959520370,1.95357472,115130.0,115120.0,0.002]
[1757959521372,1.90673547,115130.0,115120.0,0.002]
[1757959522171,1.95357472,115130.0,115120.0,0.002]
[1757959522372,1.90673547,115130.0,115120.0,0.002]
[1757959522569,2.28036028,115130.0,115120.0,0.002]
[1757959522870,2.32719953,115130.0,115120.0,0.002]
[1757959524064,1.53171953,115130.0,115120.0,0.002]
[1757959524264,1.15809472,115130.0,115120.0,0.002]
[1757959524460,1.95361472,115130.0,115120.0,0.002]
[1757959526167,1.15809472,115130.0,115120.0,0.002]
[1757959526472,1.95361472,115130.0,115120.0,0.002]
[1757959527072,1.15809472,115130.0,115120.0,0.002]
[1757959527273,1.95361472,115130.0,115120.0,0.002]
[1757959529178,1.15809472,115130.0,115120.0,0.002]
[1757959529376,1.15809472,115130.0,115120.0,0.02444]
[1757959529377,1.54597547,115130.0,115120.0,0.02444]
[1757959529577,1.59281472,115130.0,115120.0,0.02444]
[1757959530172,1.59281472,115130.0,115120.0,0.002]
[1757959530367,0.79729472,115130.0,115120.0,0.002]
[1757959530571,1.59281472,115130.0,115120.0,0.002]
[1757959531172,0.79729472,115130.0,115120.0,0.002]
[1757959531378,1.54597547,115130.0,115120.0,0.002]
[1757959531786,1.54597547,115130.0,115120.0,0.02444]
[1757959532376,1.54597547,115130.0,115120.0,0.002]
[1757959533074,1.59281472,115130.0,115120.0,0.002]
[1757959533979,1.95361472,115130.0,115120.0,0.002]
[1757959539287,1.70361472,115130.0,115120.0,0.002]
[1757959539784,2.17085875,115130.0,115120.0,0.002]
[1757959541082,1.75042433,115130.0,115120.0,0.002]
[1757959541285,2.42085875,115130.0,115120.0,0.002]
[1757959541584,0.03569,115120.0,115110.0,0.0001]
[1757959541784,0.03569,115100.0,115090.0,0.3608]
[1757959541979,1.2984938,115100.0,115090.0,0.3608]
[1757959542289,1.31937382,115100.0,115090.0,0.38324]
[1757959543387,1.31937382,115100.0,115090.0,0.38424]
[1757959544081,1.32822418,115100.0,115090.0,0.38424]
[1757959544282,1.2813348,115100.0,115090.0,0.38424]
[1757959545289,1.32822418,115100.0,115090.0,0.38424]
[1757959545676,1.34822418,115100.0,115090.0,0.3618]
[1757959545884,2.12508541,115100.0,115090.0,0.001]
[1757959546084,2.06256922,115100.0,115090.0,0.001]
[1757959546585,2.12504874,115100.0,115090.0,0.001]
[1757959546793,2.28504874,115100.0,115090.0,0.001]
[1757959546999,2.12504874,115100.0,115090.0,0.001]
[1757959547490,2.39504874,115100.0,115070.0,0.3608]
[1757959547690,0.92339795,115080.0,115070.0,0.38324]
[1757959547893,1.73979797,115080.0,115070.0,0.3608]
[1757959548086,0.89743886,115080.0,115070.0,0.38324]
[1757959548283,0.94425867,115080.0,115070.0,0.38324]
[1757959548485,1.73977867,115080.0,115070.0,0.38324]
[1757959549787,0.94425867,115080.0,115070.0,0.38324]
[1757959549989,1.73981867,115080.0,115070.0,0.38324]
[1757959551991,1.80852241,115080.0,115070.0,0.38324]
[1757959552393,1.01296241,115080.0,115070.0,0.38324]
[1757959552586,1.80852241,115080.0,115070.0,0.38324]
[1757959553893,0.96765357,115080.0,115070.0,0.38324]
[1757959554090,1.80852241,115080.0,115070.0,0.38324]
[1757959554592,1.7617026,115080.0,115070.0,0.38324]
[1757959556596,0.9661426,115080.0,115070.0,0.38324]
[1757959556794,1.7617426,115080.0,115070.0,0.38324]
[1757959556988,0.54570818,115080.0,115070.0,0.80367442]
[1757959557290,1.34130818,115080.0,115070.0,0.38324]
[1757959557688,1.34130818,115080.0,115070.0,0.80367442]
[1757959557890,0.54570818,115080.0,115070.0,0.80367442]
[1757959558192,1.34130818,115080.0,115070.0,0.80367442]
[1757959559289,0.54570818,115080.0,115070.0,0.80367442]
[1757959559793,1.34130818,115080.0,115070.0,0.80367442]
[1757959560090,0.88518376,115080.0,115070.0,1.05667442]
[1757959560699,1.30561818,115080.0,115070.0,1.05667442]
[1757959560890,0.88518376,115080.0,115070.0,1.05677442]
[1757959561294,0.88518376,115080.0,115070.0,0.63634]
[1757959561497,0.08958376,115080.0,115070.0,1.05677442]
[1757959561893,0.02088002,115080.0,115070.0,1.16416775]
[1757959562397,0.81763442,115090.0,115080.0,0.005]
[1757959562595,0.83974442,115090.0,115080.0,0.80805442]
[1757959563095,0.02173442,115090.0,115080.0,0.80805442]
[1757959563295,0.81749442,115090.0,115080.0,0.80805442]
[1757959563794,0.81849442,115090.0,115080.0,0.80805442]
[1757959563998,0.8878037,115090.0,115080.0,0.80805442]
[1757959564301,1.30923812,115090.0,115080.0,0.80805442]
[1757959564994,0.8888037,115090.0,115080.0,0.80805442]
[1757959565297,0.0930437,115090.0,115080.0,0.80805442]
[1757959565501,0.0930437,115090.0,115080.0,0.86805442]
[1757959565698,0.02373442,115090.0,115080.0,1.53848884]
[1757959565892,0.02373442,115090.0,115080.0,2.33408884]
[1757959566201,0.02373442,115090.0,115080.0,2.36096684]
[1757959566496,0.02373442,115090.0,115080.0,2.59408884]
[1757959566804,0.02373442,115090.0,115080.0,2.68096684]
[1757959567100,0.002,115090.0,115080.0,2.68096684]
[1757959567695,0.001,115090.0,115080.0,2.68096684]
[1757959567999,0.001,115090.0,115080.0,2.68100684]
[1757959568203,0.0001,115100.0,115090.0,0.01126]
[1757959568400,1.25164879,115110.0,115090.0,0.88431442]
[1757959568703,1.27389879,115110.0,115100.0,0.81421442]
[1757959568894,0.85336437,115110.0,115100.0,0.81431442]
[1757959569100,0.02175437,115110.0,115100.0,0.81431442]
[1757959569404,0.04396437,115110.0,115100.0,0.81431442]
[1757959569702,0.04496437,115110.0,115100.0,0.81431442]
[1757959570001,0.05378863,115110.0,115100.0,0.81431442]
[1757959570901,0.05278863,115110.0,115100.0,0.81431442]
[1757959571204,0.05378863,115110.0,115100.0,0.81431442]
[1757959571398,0.05478863,115110.0,115100.0,0.81431442]
[1757959571594,0.03257863,115110.0,115100.0,0.81431442]
[1757959572203,0.05478863,115110.0,115100.0,0.81431442]
[1757959572595,0.47522305,115110.0,115100.0,0.39388]
[1757959572904,0.47522305,115110.0,115100.0,0.81431442]
[1757959573803,0.48826305,115110.0,115100.0,0.38262]
[1757959574003,0.48826305,115110.0,115100.0,0.80305442]
[1757959574401,0.48826305,115110.0,115100.0,0.38262]
[1757959574595,0.48826305,115110.0,115100.0,0.80305442]
[1757959574999,0.06782863,115110.0,115100.0,0.80305442]
[1757959575199,0.48826305,115110.0,115100.0,0.80305442]
[1757959576305,0.05478863,115110.0,115100.0,0.81431442]
[1757959576504,0.47522305,115110.0,115100.0,0.81431442]
[1757959576906,0.48826305,115110.0,115100.0,0.38262]
[1757959577107,0.48826305,115110.0,115100.0,0.80305442]
[1757959577405,0.55892901,115110.0,115100.0,0.80305442]
[1757959579505,0.5588987,115110.0,115100.0,0.80305442]
[1757959582500,0.13846428,115110.0,115100.0,0.80305442]
[1757959582806,0.5588987,115110.0,115100.0,0.38262]
[1757959583105,0.5588987,115110.0,115100.0,0.80305442]
[1757959583703,0.13846428,115110.0,115100.0,0.80305442]
[1757959583902,0.5588987,115110.0,115100.0,0.80305442]
[1757959584806,0.13846428,115110.0,115100.0,0.80305442]
[1757959585007,0.5588987,115110.0,115100.0,0.80305442]
[1757959586805,0.13846428,115110.0,115100.0,0.80305442]
[1757959587003,0.53717464,115110.0,115100.0,0.80305442]
[1757959587305,0.55892091,115110.0,115100.0,0.80305442]
[1757959589907,0.55792091,115110.0,115100.0,0.80305442]
[1757959590503,0.12444649,115110.0,115100.0,0.81431442]
[1757959590706,0.12444649,115110.0,115100.0,1.10431442]
[1757959590907,0.12544649,115110.0,115100.0,1.10431442]
[1757959591105,0.10323649,115110.0,115100.0,1.10431442]
[1757959591911,0.10223649,115110.0,115100.0,1.10431442]
[1757959592311,0.10123649,115110.0,115100.0,1.10431442]
[1757959592506,0.09241223,115110.0,115100.0,1.10431442]
[1757959592707,0.09241223,115110.0,115100.0,1.18117742]
[1757959593312,0.09241223,115110.0,115100.0,0.97117742]
[1757959593608,0.09241223,115110.0,115100.0,0.88431442]
[1757959594406,0.09241223,115110.0,115100.0,0.90117742]
[1757959594610,0.02174627,115110.0,115100.0,1.86161184]
[1757959596114,0.02174627,115110.0,115100.0,1.86261184]
[1757959597311,0.02174627,115110.0,115100.0,1.022743]
[1757959597506,0.02174627,115110.0,115100.0,2.23853742]
[1757959597912,0.02174627,115110.0,115100.0,2.65897184]
[1757959598109,0.02174627,115110.0,115100.0,2.23853742]
[1757959598312,0.0001,115120.0,115100.0,2.23853742]
[1757959598513,0.02274,115120.0,115110.0,0.80673442]
[1757959598711,0.02264,115120.0,115110.0,0.80683442]
[1757959599616,0.02364,115120.0,115110.0,1.60219442]
[1757959599918,0.02364,115120.0,115110.0,0.80683442]
[1757959600318,0.02364,115120.0,115110.0,1.60219442]
[1757959600916,0.02464,115120.0,115110.0,1.60219442]
[1757959601721,0.02464,115120.0,115110.0,1.55532999]
[1757959604521,0.002,115120.0,115110.0,1.55532999]
[1757959605126,0.002,115120.0,115110.0,1.61532999]
[1757959605321,0.01535,115120.0,115110.0,1.61232999]
[1757959605738,0.01535,115120.0,115110.0,1.23876]
[1757959605921,0.01435,115120.0,115110.0,1.61232999]
[1757959606121,0.001,115120.0,115110.0,1.55532999]
[1757959606426,0.02264,115120.0,115110.0,1.55532999]
[1757959606822,0.02264,115120.0,115110.0,2.47532999]
[1757959607127,0.02464,115120.0,115110.0,2.47532999]
[1757959607328,0.02464,115120.0,115110.0,2.10172]
[1757959607822,0.02464,115120.0,115110.0,2.47528999]
[1757959609631,0.02464,115120.0,115110.0,1.67996999]
[1757959609831,0.02464,115120.0,115110.0,2.47532999]
[1757959610330,0.04633273,115120.0,115110.0,2.47532999]
[1757959612733,0.04633273,115120.0,115110.0,2.10176]
[1757959612933,0.04533273,115120.0,115110.0,2.47532999]
[1757959613737,0.04533496,115120.0,115110.0,2.47532999]
[1757959614231,0.68223495,115120.0,115110.0,1.3034]
[1757959614737,0.30866496,115120.0,115110.0,1.3034]
[1757959615038,0.30966496,115120.0,115110.0,1.67696999]
[1757959618930,0.04633496,115120.0,115110.0,1.67696999]
[1757959619134,0.04633496,115120.0,115110.0,1.68822999]
[1757959622350,0.05977496,115120.0,115110.0,1.67696999]
[1757959623247,0.05977496,115120.0,115110.0,2.47224999]
[1757959623446,0.05977496,115120.0,115110.0,2.09868]
[1757959623647,0.05977496,115120.0,115110.0,2.47224999]
[1757959628556,0.05977496,115120.0,115110.0,1.67696999]
[1757959628758,0.05977496,115120.0,115110.0,2.47224999]
[1757959634848,0.04633496,115120.0,115110.0,2.47224999]
[1757959635253,0.05977496,115120.0,115110.0,2.09868]
[1757959635449,0.05977496,115120.0,115110.0,2.47224999]
[1757959639252,0.10659477,115120.0,115110.0,2.47224999]
[1757959642751,1.52540476,115120.0,115110.0,0.3609]
[1757959642956,2.21295494,115120.0,115110.0,0.0001]
[1757959643255,0.03637,115090.0,115080.0,1.30127836]
[1757959643464,0.43163495,115090.0,115080.0,1.62127836]
[1757959643756,0.10493336,115090.0,115080.0,1.30127836]
[1757959644556,0.10493336,115090.0,115080.0,1.30227836]
[1757959645162,0.05806496,115090.0,115080.0,1.30227836]
[1757959645865,0.05806496,115090.0,115080.0,1.30427836]
[1757959646251,0.12645013,115090.0,115080.0,1.30327836]
[1757959646560,0.05806496,115090.0,115080.0,1.30327836]
[1757959646760,0.05806496,115090.0,115080.0,1.30227836]
[1757959647663,0.05806496,115090.0,115080.0,1.30127836]
[1757959650365,0.43163495,115090.0,115080.0,1.30127836]
[1757959650558,0.43163495,115090.0,115080.0,0.3608]
[1757959650959,0.50250762,115090.0,115080.0,0.3608]
[1757959655165,0.50250762,115090.0,115070.0,1.2808]
[1757959655366,1.18179999,115080.0,115070.0,1.2808]
[1757959655670,1.20349495,115080.0,115070.0,1.2808]
[1757959656059,0.40805495,115080.0,115070.0,1.2808]
[1757959656261,1.20349495,115080.0,115070.0,1.2808]
[1757959656559,1.20349495,115080.0,115070.0,1.2818]
[1757959656765,0.40805495,115080.0,115070.0,1.2818]
[1757959657063,1.20349495,115080.0,115070.0,1.2828]
[1757959657263,1.21251175,115080.0,115070.0,1.2828]
[1757959657464,1.21251175,115080.0,115070.0,1.2818]
[1757959657664,0.41707175,115080.0,115070.0,1.2828]
[1757959657865,0.04350176,115080.0,115070.0,1.2828]
[1757959658065,0.83894176,115080.0,115070.0,1.2828]
[1757959658670,0.04350176,115080.0,115070.0,1.2828]
[1757959658863,0.83894176,115080.0,115070.0,1.2828]
[1757959659066,0.04350176,115080.0,115070.0,1.2828]
[1757959659358,0.83894176,115080.0,115070.0,1.2828]
[1757959660072,0.04350176,115080.0,115070.0,1.2828]
[1757959660260,0.83894176,115080.0,115070.0,1.2828]
[1757959661870,1.25956861,115080.0,115070.0,1.70342685]
[1757959662073,1.25956861,115080.0,115070.0,1.70352685]
[1757959662464,1.25960861,115080.0,115070.0,1.70352685]
[1757959668371,1.30647701,115080.0,115070.0,1.2829]
[1757959668574,1.30647701,115080.0,115070.0,1.70352685]
[1757959672074,1.30647701,115080.0,115070.0,1.2829]
[1757959672378,1.32209981,115080.0,115070.0,1.2829]
[1757959672879,1.32209981,115080.0,115070.0,1.70352685]
[1757959673175,1.32209981,115080.0,115070.0,1.2829]
[1757959673575,1.32209981,115080.0,115070.0,1.70352685]
[1757959673978,1.32209981,115080.0,115070.0,1.2829]
[1757959674180,1.32209981,115080.0,115070.0,1.70352685]
[1757959674680,1.34394981,115080.0,115070.0,0.80650685]
[1757959675979,1.28145861,115080.0,115070.0,0.80650685]
[1757959677977,1.28145861,115080.0,115070.0,0.38588]
[1757959678175,2.01457666,115080.0,115070.0,0.3629]
[1757959678374,2.31288546,115080.0,115070.0,0.0021]
[1757959678582,2.39122377,115080.0,115070.0,0.0021]
[1757959682180,2.39118377,115080.0,115070.0,0.0021]
[1757959684090,1.54993007,115080.0,115070.0,0.0021]
[1757959684387,2.39118377,115080.0,115070.0,0.0021]
[1757959684586,0.45615685,115060.0,115050.0,0.3608]
[1757959684892,1.33581622,115060.0,115050.0,0.3608]
[1757959685092,0.03553,115050.0,115040.0,0.38212]
[1757959685288,0.50303658,115050.0,115040.0,0.38212]
[1757959685593,0.96100307,115050.0,115040.0,1.30212]
[1757959685891,0.96100307,115050.0,115040.0,1.2808]
[1757959686092,1.75640307,115050.0,115040.0,1.2808]
[1757959686590,1.75440307,115050.0,115040.0,1.2808]
[1757959686789,0.95900307,115050.0,115040.0,1.2808]
[1757959686994,1.75444307,115050.0,115040.0,1.2808]
[1757959687392,1.75444307,115050.0,115040.0,1.2838]
[1757959687690,0.95700307,115050.0,115040.0,1.2838]
[1757959687891,1.75244307,115050.0,115040.0,1.2838]
[1757959688289,0.95700307,115050.0,115040.0,1.2838]
[1757959688488,1.75244307,115050.0,115040.0,1.2868]
[1757959688690,1.02719147,115050.0,115040.0,1.2868]
[1757959688895,1.82263147,115050.0,115040.0,1.2868]
[1757959689595,1.40200462,115050.0,115040.0,1.2868]
[1757959690994,0.60656462,115050.0,115040.0,1.2868]
[1757959691300,0.12341336,115050.0,115040.0,1.95742685]
[1757959691495,0.13868751,115050.0,115040.0,1.96042685]
[1757959691696,0.09188336,115050.0,115040.0,1.5398]
[1757959691999,0.93416751,115050.0,115040.0,1.5398]
[1757959692192,0.93416751,115050.0,115040.0,1.96042685]
[1757959692395,0.09188336,115050.0,115040.0,1.96042685]
[1757959692798,0.88736336,115050.0,115040.0,1.96042685]
[1757959693699,0.09188336,115050.0,115040.0,1.96042685]
[1757959693902,0.88736336,115050.0,115040.0,1.96042685]
[1757959697605,0.09188336,115050.0,115040.0,1.96042685]
[1757959697904,0.88732336,115050.0,115040.0,1.96042685]
[1757959698206,0.09188336,115050.0,115040.0,1.96042685]
[1757959698407,0.88732336,115050.0,115040.0,1.96042685]
[1757959700198,0.88732336,115050.0,115040.0,2.33733515]
[1757959700403,0.88732336,115050.0,115040.0,2.6710537]
[1757959700705,0.09188336,115050.0,115040.0,2.467962]
[1757959700905,0.09188336,115050.0,115040.0,2.747962]
[1757959701106,0.09188336,115050.0,115040.0,2.32733515]
[1757959701599,0.09188336,115050.0,115040.0,2.747962]
[1757959702104,0.09188336,115050.0,115040.0,2.32733515]
[1757959702701,1.70499,115070.0,115060.0,0.03346]
[1757959702903,2.50029,115070.0,115060.0,0.81488685]
[1757959704106,2.48687,115070.0,115060.0,0.81488685]
[1757959704308,0.02211,115070.0,115060.0,0.81488685]
[1757959704607,0.7954,115070.0,115060.0,0.81488685]
[1757959706709,0.7954,115070.0,115060.0,1.17568685]
[1757959707012,0.0091168,115080.0,115060.0,1.17568685]
[1757959707308,0.0303168,115080.0,115070.0,0.80395685]
[1757959707606,0.8255768,115080.0,115070.0,0.80395685]
[1757959708109,1.25975365,115080.0,115070.0,0.80395685]
[1757959709409,0.8391268,115080.0,115070.0,0.80395685]
[1757959709612,0.8391268,115080.0,115070.0,0.38333]
[1757959709805,0.8391268,115080.0,115070.0,0.80395685]
[1757959710109,1.26075365,115080.0,115070.0,0.38333]
[1757959710308,1.26075365,115080.0,115070.0,0.80395685]
[1757959711005,1.26075365,115080.0,115070.0,0.38333]
[1757959711510,1.26075365,115080.0,115070.0,0.80395685]
[1757959712617,1.26075365,115080.0,115070.0,0.38333]
[1757959714613,1.28278954,115080.0,115070.0,0.38333]
[1757959718817,0.86216269,115080.0,115070.0,0.38333]
[1757959719013,1.28278954,115080.0,115070.0,0.38333]
[1757959719817,0.03475,115070.0,115060.0,0.38343]
[1757959720014,0.47741274,115070.0,115060.0,0.38333]
[1757959723619,0.47741274,115070.0,115060.0,0.80395685]
[1757959723809,0.4307688,115070.0,115060.0,0.38333]
[1757959724010,0.04323589,115070.0,115060.0,0.76945291]
[1757959724211,0.83835589,115070.0,115060.0,1.01945291]
[1757959724610,0.85190589,115070.0,115060.0,1.00731291]
[1757959727206,0.85190589,115070.0,115060.0,0.38333]
[1757959727412,1.2258888,115070.0,115060.0,0.38333]
[1757959728118,0.85190589,115070.0,115060.0,0.38333]
[1757959728307,1.2258888,115070.0,115060.0,0.38333]
[1757959729114,1.27269295,115070.0,115060.0,0.38333]
[1757959729419,0.47757295,115070.0,115060.0,0.38333]
[1757959730116,1.27265295,115070.0,115060.0,0.38333]
[1757959734030,1.27270052,115070.0,115060.0,0.38333]
[1757959735523,0.49334078,115070.0,115060.0,0.38333]
[1757959735828,1.28838078,115070.0,115060.0,0.38333]
[1757959736226,0.03621,115060.0,115050.0,0.38383]
[1757959736425,0.09873441,115060.0,115050.0,0.02293]
[1757959736626,0.49480078,115060.0,115050.0,0.02293]
[1757959737941,1.28984078,115060.0,115050.0,0.02293]
[1757959738441,1.28984078,115060.0,115050.0,0.02393]
[1757959739339,1.28984078,115060.0,115050.0,0.02493]
[1757959739837,1.28984078,115060.0,115050.0,0.002]
[1757959740040,1.65064078,115060.0,115050.0,0.002]
[1757959740344,1.90064078,115060.0,115050.0,0.002]
[1757959740544,1.10560078,115060.0,115050.0,0.002]
[1757959740744,1.90064078,115060.0,115050.0,0.002]
[1757959741749,1.10560078,115060.0,115050.0,0.002]
[1757959741951,1.90064078,115060.0,115050.0,0.002]
[1757959742647,1.10560078,115060.0,115050.0,0.02493]
[1757959742850,1.90064078,115060.0,115050.0,0.02493]
[1757959743253,1.90064078,115060.0,115050.0,0.002]
[1757959744453,1.83811637,115060.0,115050.0,0.002]
[1757959745448,1.88497493,115060.0,115050.0,0.002]
[1757959746052,1.08993493,115060.0,115050.0,0.002]
[1757959746346,1.08993493,115060.0,115050.0,0.02493]
[1757959746546,1.88497493,115060.0,115050.0,0.02493]
[1757959746748,1.08993493,115060.0,115050.0,0.02493]
[1757959747547,1.88493493,115060.0,115050.0,0.02493]
[1757959750356,0.71595202,115060.0,115050.0,0.02493]
[1757959750656,1.88493493,115060.0,115050.0,0.02493]
[1757959751358,1.08993493,115060.0,115050.0,0.02493]
[1757959751758,1.88493493,115060.0,115050.0,0.02493]
[1757959752462,1.63493493,115060.0,115050.0,0.02493]
[1757959753259,1.27413493,115060.0,115050.0,0.002]
[1757959753460,1.27413493,115060.0,115050.0,0.02493]
[1757959754266,1.27413493,115060.0,115050.0,0.002]
[1757959761168,1.27413493,115060.0,115050.0,0.02493]
[1757959761359,1.27413493,115060.0,115050.0,0.002]
[1757959763662,1.27413493,115060.0,115050.0,0.02493]
[1757959765466,1.27413493,115060.0,115050.0,0.002]
[1757959767371,1.27413493,115060.0,115050.0,0.001]
[1757959769372,0.01356,115050.0,115040.0,0.9201]
[1757959769565,0.08234551,115050.0,115040.0,0.94114]
[1757959769766,0.47841188,115050.0,115040.0,0.94114]
[1757959770778,0.47841188,115050.0,115040.0,0.94314]
[1757959771871,1.27321188,115050.0,115040.0,0.94314]
[1757959772776,1.34250357,115050.0,115040.0,0.94314]
[1757959773178,0.17372066,115050.0,115040.0,0.94314]
[1757959773377,1.34246357,115050.0,115040.0,0.94314]
[1757959776274,1.29550806,115050.0,115040.0,0.94314]
[1757959776667,0.50074806,115050.0,115040.0,0.94314]
[1757959777867,1.29546806,115050.0,115040.0,0.94314]
[1757959779170,1.29546806,115050.0,115040.0,0.02314]